fUSD/lending_fUSD_20240813
["ID","MTS","AMOUNT","RATE_DAILY","PERIOD"]
[334752118,1723535488463,-560.08,0.00015646,2]
[334752119,1723535488472,-500.0,0.00015646,2]
[334752120,1723535488482,-500.0,0.00015646,2]
[334752121,1723535488491,-1646.38,0.00015646,2]
[334752122,1723535488500,-1106.51,0.00015646,2]
[334752123,1723535488510,-1145.83,0.00015646,2]
[334752124,1723535488519,-500.0,0.00015646,2]
[334752125,1723535488529,-500.0,0.00015646,2]
[334752126,1723535488540,-1271.02,0.00015646,2]
[334752127,1723535488553,-500.0,0.00015646,2]
[334752128,1723535488563,-500.0,0.00015646,2]
[334752129,1723535488573,-756.19,0.00015646,2]
[334752130,1723535488583,-1189.17,0.00015646,2]
[334752131,1723535488592,-633.87,0.00015646,2]
[334752132,1723535488602,-366.3555102,0.00015646,2]
[334752133,1723535488612,-500.0,0.00015646,2]
[334752134,1723535488623,-500.0,0.00015646,2]
[334752135,1723535488633,-507.8,0.00015646,2]
[334752136,1723535488644,-555.42,0.00015646,2]
[334752137,1723535488653,-500.0,0.00015646,2]
[334752138,1723535488663,-869.38,0.00015646,2]
[334752139,1723535488673,-500.0,0.00015646,2]
[334752140,1723535488683,-500.0,0.00015646,2]
[334752141,1723535488692,-653.45,0.00015647,2]
[334752142,1723535488701,-500.0,0.00015647,2]
[334752143,1723535488711,-663.86,0.00015647,2]
[334752144,1723535488720,-500.0,0.00015647,2]
[334752145,1723535488730,-500.0,0.00015647,2]
[334752146,1723535488740,-784.51,0.00015647,2]
[334752147,1723535488750,-500.0,0.00015647,2]
[334752148,1723535488759,-500.0,0.00015647,2]
[334752149,1723535488770,-500.0,0.00015647,2]
[334752150,1723535488779,-179.29508731,0.00015647,2]
[334752151,1723535488789,-354.78992601,0.00015647,2]
[334752152,1723535488798,-210.81431787,0.00015647,2]
[334752153,1723535488808,-500.0,0.00015647,2]
[334752154,1723535488818,-287.46502235,0.00015647,2]
[334752155,1723535488828,-500.0,0.00015647,2]
[334752156,1723535488837,-577.96815653,0.00015647,2]
[334752157,1723535488846,-286.34559587,0.00015647,2]
[334752158,1723535488856,-2199.74,0.00015647,2]
[334752159,1723535488865,-500.0,0.00015647,2]
[334752160,1723535488875,-500.0,0.00015647,2]
[334752161,1723535488884,-500.0,0.00015647,2]
[334752162,1723535488894,-500.0,0.00015647,2]
[334752163,1723535488903,-500.0,0.00015647,2]
[334752164,1723535488913,-500.0,0.00015647,2]
[334752165,1723535488922,-500.0,0.00015647,2]
[334752166,1723535488931,-500.0,0.00015647,2]
[334752167,1723535488941,-500.0,0.00015647,2]
[334752168,1723535488950,-1837.44,0.00015647,2]
[334752169,1723535488960,-909.74,0.00015647,2]
[334752170,1723535488970,-500.0,0.00015647,2]
[334752171,1723535488980,-16518.43,0.00015647,2]
[334752172,1723535488990,-268.76661695,0.00015647,2]
[334752173,1723535489000,-206.15156171,0.00015647,2]
[334752174,1723535489009,-366.13370474,0.00015647,2]
[334752175,1723535489021,-500.0,0.00015647,2]
[334752176,1723535489031,-500.0,0.00015647,2]
[334752177,1723535489040,-932.05,0.00015647,2]
[334752178,1723535489050,-724.39,0.00015647,2]
[334752179,1723535489060,-500.0,0.00015647,2]
[334752180,1723535489070,-500.0,0.00015647,2]
[334752181,1723535489079,-500.0,0.00015647,2]
[334752182,1723535489089,-587.6,0.00015647,2]
[334752183,1723535489098,-337.10506361,0.00015647,2]
[334752184,1723535489108,-908.11,0.00015647,2]
[334752185,1723535489117,-799.22,0.00015647,2]
[334752186,1723535489127,-500.0,0.00015647,2]
[334752187,1723535489137,-500.0,0.00015647,2]
[334752188,1723535489147,-1082.91,0.00015647,2]
[334752189,1723535489157,-500.0,0.00015647,2]
[334752190,1723535489167,-500.0,0.00015647,2]
[334752191,1723535489177,-218.47641326,0.00015647,2]
[334752192,1723535489187,-500.0,0.00015647,2]
[334752193,1723535489197,-15076.44,0.00015647,2]
[334752194,1723535489207,-500.0,0.00015647,2]
[334752195,1723535489217,-500.0,0.00015647,2]
[334752196,1723535489227,-500.0,0.00015647,2]
[334752197,1723535489238,-500.0,0.00015647,2]
[334752198,1723535489247,-500.0,0.00015647,2]
[334752199,1723535489257,-4670.57,0.00015647,2]
[334752200,1723535489267,-500.0,0.00015647,2]
[334752201,1723535489277,-500.0,0.00015647,2]
[334752202,1723535489286,-667.34,0.00015647,2]
[334752203,1723535489296,-571.04,0.00015647,2]
[334752204,1723535489305,-500.0,0.00015647,2]
[334752205,1723535489315,-1754.66,0.00015647,2]
[334752206,1723535489324,-500.0,0.00015647,2]
[334752207,1723535489334,-500.0,0.00015647,2]
[334752208,1723535489344,-500.0,0.00015647,2]
[334752209,1723535489353,-534.32,0.00015647,2]
[334752210,1723535489363,-500.0,0.00015647,2]
[334752211,1723535489373,-524.33,0.00015647,2]
[334752212,1723535489383,-500.0,0.00015647,2]
[334752213,1723535489392,-682.76,0.00015647,2]
[334752214,1723535489402,-2553.18,0.00015647,2]
[334752215,1723535489412,-1600.18,0.00015647,2]
[334752216,1723535489421,-500.0,0.00015647,2]
[334752217,1723535489431,-462.86120183,0.00015647,2]
[334752218,1723535489440,-500.0,0.00015647,2]
[334752219,1723535489449,-549.82,0.00015647,2]
[334752220,1723535489459,-705.6,0.00015647,2]
[334752221,1723535489468,-569.05285542,0.00015647,2]
[334752222,1723535489477,-500.0,0.00015647,2]
[334752223,1723535489487,-500.0,0.00015647,2]
[334752224,1723535489496,-237.68700359,0.00015647,2]
[334752225,1723535489506,-500.0,0.00015647,2]
[334752226,1723535489517,-500.0,0.00015647,2]
[334752227,1723535489527,-500.0,0.00015647,2]
[334752228,1723535489536,-500.0,0.00015647,2]
[334752229,1723535489549,-500.0,0.00015647,2]
[334752230,1723535489558,-500.0,0.00015647,2]
[334752231,1723535489567,-500.0,0.00015647,2]
[334752232,1723535489578,-500.0,0.00015647,2]
[334752233,1723535489588,-500.0,0.00015647,2]
[334752234,1723535489598,-500.0,0.00015647,2]
[334752235,1723535489607,-500.0,0.00015647,2]
[334752236,1723535489618,-500.0,0.00015647,2]
[334752237,1723535489628,-500.0,0.00015647,2]
[334752238,1723535489638,-500.0,0.00015647,2]
[334752239,1723535489649,-803.87,0.00015647,2]
[334752240,1723535489659,-500.0,0.00015647,2]
[334752241,1723535489670,-500.0,0.00015647,2]
[334752242,1723535489680,-224.38282423,0.00015672,2]
[334752243,1723535489689,-2000.0,0.000157,2]
[334752244,1723535489699,-500.0,0.00015712,2]
[334752245,1723535489709,-500.0,0.00015717,2]
[334752246,1723535489718,-1863.44,0.00015717,2]
[334752247,1723535489730,-500.0,0.00015717,2]
[334752248,1723535489741,-500.0,0.00015717,2]
[334752249,1723535489752,-593.06572311,0.00015717,2]
[334752250,1723535489763,-500.0,0.00015717,2]
[334752251,1723535489776,-500.0,0.00015717,2]
[334752252,1723535489785,-150.0,0.00015717,2]
[334752253,1723535489795,-1155.62,0.00015717,2]
[334752254,1723535489803,-714.2,0.00015717,2]
[334752255,1723535489813,-1241.0,0.00015717,2]
[334752256,1723535489822,-755.25,0.00015717,2]
[334752257,1723535489831,-791.16,0.00015717,2]
[334752258,1723535489840,-500.0,0.00015717,2]
[334752259,1723535489849,-500.0,0.00015717,2]
[334752260,1723535489859,-946.68,0.00015717,2]
[334752261,1723535489868,-1359.34,0.00015717,2]
[334752262,1723535489877,-500.0,0.00015717,2]
[334752263,1723535489887,-500.0,0.00015717,2]
[334752264,1723535489896,-1743.71,0.00015717,2]
[334752265,1723535489906,-1023.06,0.00015717,2]
[334752266,1723535489915,-500.0,0.00015717,2]
[334752267,1723535489924,-500.0,0.00015717,2]
[334752268,1723535489935,-778.62,0.00015717,2]
[334752269,1723535489945,-1760.09,0.00015717,2]
[334752270,1723535489954,-546.94169588,0.00015717,2]
[334752271,1723535489963,-500.0,0.00015717,2]
[334752272,1723535489973,-500.0,0.00015717,2]
[334752273,1723535489982,-1230.55,0.00015717,2]
[334752274,1723535489993,-537.47,0.00015717,2]
[334752275,1723535490002,-1688.57,0.00015717,2]
[334752276,1723535490012,-1001.08,0.00015717,2]
[334752277,1723535490021,-828.014967,0.00015717,2]
[334752278,1723535490030,-500.0,0.00015717,2]
[334752279,1723535490040,-435.949083,0.00015717,2]
[334752280,1723535490049,-21831.704954,0.00015717,2]
[334752281,1723535490059,-28588.8833,0.00015717,2]
[334752282,1723535490069,-6177.95,0.00015717,2]
[334752283,1723535490081,-4092.104095,0.00015717,2]
[334752284,1723535490090,-500.0,0.00015717,2]
[334752285,1723535490100,-500.0,0.00015717,2]
[334752286,1723535490110,-2922.39,0.00015717,2]
[334752287,1723535490121,-500.0,0.00015717,2]
[334752288,1723535490130,-500.0,0.00015717,2]
[334752289,1723535490139,-1300.36,0.00015717,2]
[334752290,1723535490149,-500.0,0.00015717,2]
[334752291,1723535490159,-500.0,0.00015717,2]
[334752292,1723535490168,-609.65,0.00015717,2]
[334752293,1723535490178,-523.35,0.00015717,2]
[334752294,1723535490187,-1411.68,0.00015717,2]
[334752295,1723535490196,-500.0,0.00015717,2]
[334752296,1723535490206,-500.0,0.00015717,2]
[334752297,1723535490215,-318.2207887,0.00015717,2]
[334752298,1723535490224,-1209.11,0.00015717,2]
[334752299,1723535490233,-518.03,0.00015717,2]
[334752300,1723535490243,-1085.25,0.00015717,2]
[334752301,1723535490251,-626.80685654,0.00015717,2]
[334752302,1723535490261,-991.7,0.00015717,2]
[334752303,1723535490272,-507.82,0.00015717,2]
[334752304,1723535490282,-500.0,0.00015717,2]
[334752305,1723535490291,-500.0,0.00015717,2]
[334752306,1723535490301,-686.92,0.00015717,2]
[334752307,1723535490311,-500.0,0.00015717,2]
[334752308,1723535490321,-2622.01,0.00015717,2]
[334752309,1723535490330,-500.0,0.00015717,2]
[334752310,1723535490340,-551.73,0.00015717,2]
[334752311,1723535490350,-500.0,0.00015717,2]
[334752312,1723535490360,-1670.97,0.00015717,2]
[334752313,1723535490370,-670.23,0.00015717,2]
[334752314,1723535490379,-500.0,0.00015717,2]
[334752315,1723535490389,-3541.36,0.00015717,2]
[334752316,1723535490399,-500.0,0.00015717,2]
[334752317,1723535490409,-500.0,0.00015717,2]
[334752318,1723535490419,-500.0,0.00015717,2]
[334752319,1723535490428,-500.0,0.00015717,2]
[334752320,1723535490438,-500.0,0.00015717,2]
[334752321,1723535490447,-500.0,0.00015717,2]
[334752322,1723535490457,-1085.98,0.00015717,2]
[334752323,1723535490467,-500.0,0.00015717,2]
[334752324,1723535490477,-500.0,0.00015717,2]
[334752325,1723535490486,-2167.9,0.00015717,2]
[334752326,1723535490495,-500.0,0.00015717,2]
[334752327,1723535490504,-500.0,0.00015717,2]
[334752328,1723535490647,-500.0,0.00015717,2]
[334752329,1723535490672,-2066.64,0.00015717,2]
[334752330,1723535490683,-1180.27,0.00015717,2]
[334752331,1723535490692,-913.4,0.00015717,2]
[334752332,1723535490703,-500.0,0.00015717,2]
[334752333,1723535490713,-1756.06,0.00015717,2]
[334752334,1723535490723,-500.0,0.00015717,2]
[334752335,1723535490735,-500.0,0.00015717,2]
[334752336,1723535490746,-610.16,0.00015717,2]
[334752337,1723535490756,-4710.01,0.00015717,2]
[334752338,1723535490767,-644.14,0.00015717,2]
[334752339,1723535490776,-1586.08,0.00015717,2]
[334752340,1723535490785,-214.78354186,0.00015717,2]
[334752341,1723535490795,-500.0,0.00015717,2]
[334752342,1723535490804,-500.0,0.00015717,2]
[334752343,1723535490814,-842.93,0.00015717,2]
[334752344,1723535490823,-500.84,0.00015717,2]
[334752345,1723535490832,-500.0,0.00015717,2]
[334752346,1723535490843,-500.0,0.00015717,2]
[334752347,1723535490853,-934.19,0.00015717,2]
[334752348,1723535490863,-500.0,0.00015717,2]
[334752349,1723535490872,-4812.55,0.00015717,2]
[334752350,1723535490883,-500.0,0.00015717,2]
[334752351,1723535490894,-605.96,0.00015717,2]
[334752352,1723535490903,-755.9,0.00015717,2]
[334752353,1723535490912,-1219.63,0.00015717,2]
[334752354,1723535490921,-500.0,0.00015717,2]
[334752355,1723535490930,-889.59,0.00015717,2]
[334752356,1723535490939,-2146.37,0.00015717,2]
[334752357,1723535490949,-521.65,0.00015717,2]
[334752358,1723535490958,-500.0,0.00015717,2]
[334752359,1723535490967,-2584.53,0.00015717,2]
[334752360,1723535490977,-500.0,0.00015717,2]
[334752361,1723535490986,-500.0,0.00015717,2]
[334752362,1723535490995,-316.34050959,0.00015717,2]
[334752363,1723535491005,-500.0,0.00015717,2]
[334752364,1723535491014,-690.9,0.00015717,2]
[334752365,1723535491029,-645.82,0.00015717,2]
[334752366,1723535491038,-4824.32,0.00015717,2]
[334752367,1723535491048,-500.0,0.00015717,2]
[334752368,1723535491057,-2092.45,0.00015717,2]
[334752369,1723535491066,-500.0,0.00015717,2]
[334752370,1723535491076,-1427.21,0.00015717,2]
[334752371,1723535491085,-500.0,0.00015717,2]
[334752372,1723535491095,-500.0,0.00015717,2]
[334752373,1723535491104,-500.0,0.00015717,2]
[334752374,1723535491113,-521.39382629,0.00015717,2]
[334752375,1723535491123,-500.0,0.00015717,2]
[334752376,1723535491133,-500.0,0.00015717,2]
[334752377,1723535491142,-500.0,0.00015717,2]
[334752378,1723535491152,-2925.2,0.00015717,2]
[334752379,1723535491161,-500.0,0.00015717,2]
[334752380,1723535491171,-150.0,0.00015732,2]
[334752381,1723535491180,-201.0,0.0001578,2]
[334752382,1723535491190,-794.0,0.00015796,2]
[334752383,1723535491199,-224.38282423,0.000158,2]
[334752384,1723535491208,-167.0,0.00015831,2]
[334752385,1723535491218,-150.0,0.00015831,2]
[334752386,1723535491228,-400.0,0.00015842,2]
[334752387,1723535491237,-400.0,0.00015842,2]
[334752388,1723535491247,-500.0,0.0001589,2]
[334752389,1723535491256,-500.0,0.0001589,2]
[334752390,1723535491266,-500.0,0.0001589,2]
[334752391,1723535491278,-500.0,0.0001589,2]
[334752392,1723535491287,-771.68,0.0001589,2]
[334752393,1723535491297,-500.0,0.0001589,2]
[334752394,1723535491307,-1103.589328,0.0001589,2]
[334752395,1723535491316,-304.3,0.000159,2]
[334752396,1723535491326,-1700.0,0.000159,5]
[334752397,1723535491335,-152.8,0.00015918,2]
[334752398,1723535491344,-1412.75,0.00015919,2]
[334752399,1723535491355,-500.0,0.00015919,2]
[334752400,1723535491364,-500.0,0.00015919,2]
[334752401,1723535491374,-396.54086662,0.0001592,2]
[334752402,1723535491383,-508.59,0.0001592,2]
[334752403,1723535491393,-500.0,0.0001592,2]
[334752404,1723535491403,-500.0,0.0001592,2]
[334752405,1723535491412,-500.0,0.0001592,2]
[334752406,1723535491422,-500.0,0.0001592,2]
[334752407,1723535491432,-186.77842553,0.0001592,2]
[334752408,1723535491442,-351.73912639,0.0001592,2]
[334752409,1723535491451,-500.0,0.0001592,2]
[334752410,1723535491461,-500.0,0.0001592,2]
[334752411,1723535491470,-240.39348767,0.0001592,2]
[334752412,1723535491480,-500.0,0.0001592,2]
[334752413,1723535491489,-500.0,0.0001592,2]
[334752414,1723535491499,-311.84501069,0.0001592,2]
[334752415,1723535491509,-500.0,0.0001592,2]
[334752416,1723535491528,-6591.73,0.0001592,2]
[334752417,1723535491539,-500.0,0.0001592,2]
[334752418,1723535491551,-1037.55,0.0001592,2]
[334752419,1723535491561,-500.0,0.0001592,2]
[334752420,1723535491570,-981.15,0.0001592,2]
[334752421,1723535491579,-500.0,0.0001592,2]
[334752422,1723535491590,-553.64,0.0001592,2]
[334752423,1723535491599,-505.73,0.0001592,2]
[334752424,1723535491609,-888.8,0.0001592,2]
[334752425,1723535491620,-4003.23,0.0001592,2]
[334752426,1723535491630,-500.0,0.0001592,2]
[334752427,1723535491639,-500.0,0.0001592,2]
[334752428,1723535491649,-773.78,0.0001592,2]
[334752429,1723535491658,-500.0,0.0001592,2]
[334752430,1723535491668,-560.08,0.0001592,2]
[334752431,1723535491678,-500.0,0.0001592,2]
[334752432,1723535491687,-500.0,0.0001592,2]
[334752433,1723535491697,-1646.38,0.0001592,2]
[334752434,1723535491706,-1106.51,0.0001592,2]
[334752435,1723535491715,-1145.83,0.0001592,2]
[334752436,1723535491725,-500.0,0.0001592,2]
[334752437,1723535491735,-500.0,0.0001592,2]
[334752438,1723535491745,-1271.02,0.0001592,2]
[334752439,1723535491754,-500.0,0.0001592,2]
[334752440,1723535491764,-500.0,0.0001592,2]
[334752441,1723535491777,-756.19,0.0001592,2]
[334752442,1723535491787,-1189.17,0.0001592,2]
[334752443,1723535491797,-633.87,0.0001592,2]
[334752444,1723535491807,-500.0,0.0001592,2]
[334752445,1723535491817,-500.0,0.0001592,2]
[334752446,1723535491826,-507.8,0.0001592,2]
[334752447,1723535491836,-555.42,0.0001592,2]
[334752448,1723535491846,-500.0,0.0001592,2]
[334752449,1723535491856,-869.38,0.0001592,2]
[334752450,1723535491866,-500.0,0.0001592,2]
[334752451,1723535491877,-500.0,0.0001592,2]
[334752452,1723535491886,-653.45,0.00015921,2]
[334752453,1723535491896,-500.0,0.00015921,2]
[334752454,1723535491906,-663.86,0.00015921,2]
[334752455,1723535491916,-500.0,0.00015921,2]
[334752456,1723535491926,-500.0,0.00015921,2]
[334752457,1723535491936,-784.51,0.00015921,2]
[334752458,1723535491947,-256.79593571,0.00015921,2]
[334752459,1723535491958,-500.0,0.00015921,2]
[334752460,1723535491968,-500.0,0.00015921,2]
[334752461,1723535491979,-500.0,0.00015921,2]
[334752462,1723535491988,-500.0,0.00015921,2]
[334752463,1723535491998,-2199.74,0.00015921,2]
[334752464,1723535492008,-500.0,0.00015921,2]
[334752465,1723535492020,-500.0,0.00015921,2]
[334752466,1723535492030,-500.0,0.00015921,2]
[334752467,1723535492040,-165.71454537,0.00015921,2]
[334752468,1723535492049,-500.0,0.00015921,2]
[334752469,1723535492059,-314.31455008,0.00015921,2]
[334752470,1723535492068,-208.72151568,0.00015921,2]
[334752471,1723535492077,-500.0,0.00015921,2]
[334752472,1723535492087,-500.0,0.00015921,2]
[334752473,1723535492097,-1837.44,0.00015921,2]
[334752474,1723535492107,-909.74,0.00015921,2]
[334752475,1723535492117,-319.99008454,0.00015921,2]
[334752476,1723535492127,-16518.43,0.00015921,2]
[334752477,1723535492137,-500.0,0.00015921,2]
[334752478,1723535492147,-500.0,0.00015921,2]
[334752479,1723535492156,-932.05,0.00015921,2]
[334752480,1723535492166,-724.39,0.00015921,2]
[334752481,1723535492175,-500.0,0.00015921,2]
[334752482,1723535492185,-500.0,0.00015921,2]
[334752483,1723535492195,-500.0,0.00015921,2]
[334752484,1723535492205,-587.6,0.00015921,2]
[334752485,1723535492214,-908.11,0.00015921,2]
[334752486,1723535492223,-799.22,0.00015921,2]
[334752487,1723535492233,-500.0,0.00015921,2]
[334752488,1723535492242,-500.0,0.00015921,2]
[334752489,1723535492251,-1082.91,0.00015921,2]
[334752490,1723535492260,-500.0,0.00015921,2]
[334752491,1723535492270,-500.0,0.00015921,2]
[334752492,1723535492280,-500.0,0.00015921,2]
[334752493,1723535492289,-15076.44,0.00015921,2]
[334752494,1723535492299,-500.0,0.00015921,2]
[334752495,1723535492308,-500.0,0.00015921,2]
[334752496,1723535492317,-500.0,0.00015921,2]
[334752497,1723535492327,-500.0,0.00015921,2]
[334752498,1723535492336,-252.95,0.00015921,2]
[334752499,1723535492345,-4670.57,0.00015921,2]
[334752500,1723535492354,-500.0,0.00015921,2]
[334752501,1723535492363,-500.0,0.00015921,2]
[334752502,1723535492375,-667.34,0.00015921,2]
[334752503,1723535492385,-571.04,0.00015921,2]
[334752504,1723535492394,-500.0,0.00015921,2]
[334752505,1723535492404,-1754.66,0.00015921,2]
[334752506,1723535492413,-641.04737356,0.00015921,2]
[334752507,1723535492423,-494.66269018,0.00015921,2]
[334752508,1723535492432,-500.0,0.00015921,2]
[334752509,1723535492442,-534.32,0.00015921,2]
[334752510,1723535492452,-252.82727779,0.00015921,2]
[334752511,1723535492461,-524.33,0.00015921,2]
[334752512,1723535492470,-500.0,0.00015921,2]
[334752513,1723535492480,-682.76,0.00015921,2]
[334752514,1723535492490,-2553.18,0.00015921,2]
[334752515,1723535492499,-1600.18,0.00015921,2]
[334752516,1723535492508,-500.0,0.00015921,2]
[334752517,1723535492519,-500.0,0.00015921,2]
[334752518,1723535492528,-549.82,0.00015921,2]
[334752519,1723535492537,-705.6,0.00015921,2]
[334752520,1723535492551,-500.0,0.00015921,2]
[334752521,1723535492560,-500.0,0.00015921,2]
[334752522,1723535492569,-500.0,0.00015921,2]
[334752523,1723535492579,-500.0,0.00015921,2]
[334752524,1723535492589,-500.0,0.00015921,2]
[334752525,1723535492598,-500.0,0.00015921,2]
[334752526,1723535492608,-500.0,0.00015921,2]
[334752527,1723535492616,-500.0,0.00015921,2]
[334752528,1723535492627,-500.0,0.00015921,2]
[334752529,1723535492637,-500.0,0.00015921,2]
[334752530,1723535492647,-500.0,0.00015921,2]
[334752531,1723535492656,-500.0,0.00015921,2]
[334752532,1723535492666,-500.0,0.00015921,2]
[334752533,1723535492675,-500.0,0.00015921,2]
[334752534,1723535492684,-500.0,0.00015921,2]
[334752535,1723535492693,-500.0,0.00015921,2]
[334752536,1723535492703,-803.87,0.00015921,2]
[334752537,1723535492712,-287.44633292,0.00015921,2]
[334752538,1723535492722,-500.0,0.00015921,2]
[334752539,1723535492731,-224.38282423,0.00015927,2]
[334752540,1723535492741,-338.18913153,0.00015937,2]
[334752541,1723535492749,-150.0,0.0001597,2]
[334752542,1723535492759,-421.05,0.00015976,2]
[334752543,1723535492768,-421.05,0.00015976,2]
[334752544,1723535492777,-421.05,0.00015976,2]
[334752545,1723535492786,-500.0,0.00015991,2]
[334752546,1723535492795,-1863.44,0.00015991,2]
[334752547,1723535492804,-500.0,0.00015991,2]
[334752548,1723535492814,-483.99103454,0.00015991,2]
[334752549,1723535492823,-500.0,0.00015991,2]
[334752550,1723535492832,-150.0,0.00015991,2]
[334752551,1723535492841,-1155.62,0.00015991,2]
[334752552,1723535492850,-714.2,0.00015991,2]
[334752553,1723535492859,-1241.0,0.00015991,2]
[334752554,1723535492868,-755.25,0.00015991,2]
[334752555,1723535492877,-791.16,0.00015991,2]
[334752556,1723535492886,-541.01205812,0.00015991,2]
[334752557,1723535492896,-500.0,0.00015991,2]
[334752558,1723535492905,-946.68,0.00015991,2]
[334752559,1723535492914,-1359.34,0.00015991,2]
[334752560,1723535492924,-500.0,0.00015991,2]
[334752561,1723535492933,-500.0,0.00015991,2]
[334752562,1723535492942,-1743.71,0.00015991,2]
[334752563,1723535492951,-1023.06,0.00015991,2]
[334752564,1723535492960,-597.43505406,0.00015991,2]
[334752565,1723535492969,-500.0,0.00015991,2]
[334752566,1723535492979,-778.62,0.00015991,2]
[334752567,1723535492988,-1760.09,0.00015991,2]
[334752568,1723535492997,-500.0,0.00015991,2]
[334752569,1723535493006,-511.73236657,0.00015991,2]
[334752570,1723535493014,-1230.55,0.00015991,2]
[334752571,1723535493025,-537.47,0.00015991,2]
[334752572,1723535493034,-1688.57,0.00015991,2]
[334752573,1723535493043,-1001.08,0.00015991,2]
[334752574,1723535493053,-500.0,0.00015991,2]
[334752575,1723535493062,-6177.95,0.00015991,2]
[334752576,1723535493071,-500.0,0.00015991,2]
[334752577,1723535493081,-500.0,0.00015991,2]
[334752578,1723535493090,-2922.39,0.00015991,2]
[334752579,1723535493099,-500.0,0.00015991,2]
[334752580,1723535493108,-500.0,0.00015991,2]
[334752581,1723535493118,-1300.36,0.00015991,2]
[334752582,1723535493127,-500.0,0.00015991,2]
[334752583,1723535493137,-500.0,0.00015991,2]
[334752584,1723535493146,-609.65,0.00015991,2]
[334752585,1723535493155,-523.35,0.00015991,2]
[334752586,1723535493165,-1411.68,0.00015991,2]
[334752587,1723535493174,-500.0,0.00015991,2]
[334752588,1723535493183,-500.0,0.00015991,2]
[334752589,1723535493193,-1209.11,0.00015991,2]
[334752590,1723535493202,-518.03,0.00015991,2]
[334752591,1723535493213,-1085.25,0.00015991,2]
[334752592,1723535493222,-991.7,0.00015991,2]
[334752593,1723535493232,-507.82,0.00015991,2]
[334752594,1723535493241,-500.0,0.00015991,2]
[334752595,1723535493250,-500.0,0.00015991,2]
[334752596,1723535493260,-686.92,0.00015991,2]
[334752597,1723535493270,-500.0,0.00015991,2]
[334752598,1723535493280,-2622.01,0.00015991,2]
[334752599,1723535493290,-500.0,0.00015991,2]
[334752600,1723535493300,-551.73,0.00015991,2]
[334752601,1723535493310,-500.0,0.00015991,2]
[334752602,1723535493319,-1670.97,0.00015991,2]
[334752603,1723535493329,-670.23,0.00015991,2]
[334752604,1723535493339,-500.0,0.00015991,2]
[334752605,1723535493348,-3541.36,0.00015991,2]
[334752606,1723535493358,-500.0,0.00015991,2]
[334752607,1723535493368,-500.0,0.00015991,2]
[334752608,1723535493377,-500.0,0.00015991,2]
[334752609,1723535493385,-500.0,0.00015991,2]
[334752610,1723535493394,-500.0,0.00015991,2]
[334752611,1723535493403,-500.0,0.00015991,2]
[334752612,1723535493413,-1085.98,0.00015991,2]
[334752613,1723535493423,-500.0,0.00015991,2]
[334752614,1723535493433,-500.0,0.00015991,2]
[334752615,1723535493443,-2167.9,0.00015991,2]
[334752616,1723535493453,-500.0,0.00015991,2]
[334752617,1723535493462,-538.59599908,0.00015991,2]